{"text_format":"3","workbook":"xlsx","n_sheets":4,"sheets":["CELE","DIETA","ĆWICZENIA","Obliczenia wykresu"],"not_rendered":{"charts":2,"defined_names":19},"read":"whole","date_system":"1900"}

{"sheet":"CELE","index":0,"n_rows":16,"n_cols":11,"rows_kept":16,"merged":[[2,1,3,1],[7,1,8,1]]}
[null,{"$f":"TODAY()","v":"2017-05-05"},"CELE",{"$nulls":6},"Ćwiczenia","Dieta"]
[null,"DATA ROZPOCZĘCIA","DZIENNIK DIETY I ĆWICZEŃ"]
[null,{"$f":"Data_rozpoczęcia+121","v":"2017-09-03"},"ANALIZA DIETY"]
[]
[null,"DATA ZAKOŃCZENIA"]
[null,{"v":100,"d":"100.00"}]
[null,"WAGA POCZĄTKOWA"]
[null,{"v":80,"d":"80.00"},"ANALIZA ĆWICZEŃ"]
[]
[null,"WAGA DOCELOWA"]
[null,{"$f":"Waga_początkowa-Waga_docelowa","v":20}]
[null,"PLANOWANE SCHUDNIĘCIE"]
[null,{"$f":"Data_zakończenia-Data_rozpoczęcia","v":121}]
[null,"DNI ODCHUDZANIA"]
[null,{"$f":"Planowanie_schudnięcie/B13","v":{"v":0.1652892561983471,"d":"0.17"}}]
[null,"DZIENNA UTRATA"]

{"sheet":"DIETA","index":1,"n_rows":19,"n_cols":9,"rows_kept":19}
[null,"DIETA",{"$nulls":4},"Cele","Ćwiczenia"]
[null,{"$f":"Podtytuł","v":"DZIENNIK DIETY I ĆWICZEŃ"}]
[null,"DATA","GODZINA","OPIS","KALORIE","WĘGLOWODANY","BIAŁKO","TŁUSZCZ","NOTATKI"]
[null,{"$f":"Data_rozpoczęcia","v":"2017-05-05"},"07:00:00","Kawa",1,0,0,0,"Poranna kawa"]
[null,{"$f":"Data_rozpoczęcia","v":"2017-05-05"},"08:00:00","Drożdżówka",10,10,2,10,"Lekkie śniadanie"]
[null,{"$f":"Data_rozpoczęcia","v":"2017-05-05"},"12:00:00","Obiad",283,46,18,{"v":3.5,"d":"4"},"Kanapka z wędliną"]
[null,{"$f":"Data_rozpoczęcia","v":"2017-05-05"},"19:00:00","Kolacja",500,42,35,25,"Zapiekanka mięsna"]
[null,{"$f":"Data_rozpoczęcia+1","v":"2017-05-06"},"07:00:00","Kawa",1,0,0,0,"Poranna kawa"]
[null,{"$f":"Data_rozpoczęcia+1","v":"2017-05-06"},"08:00:00","Grzanka",10,10,2,10,"Lekkie śniadanie"]
[null,{"$f":"Data_rozpoczęcia+1","v":"2017-05-06"},"12:00:00","Obiad",189,26,3,8,"Kanapka"]
[null,{"$f":"Data_rozpoczęcia+1","v":"2017-05-06"},"19:00:00","Kolacja",477,62,{"v":13.5,"d":"14"},21,"Kolacja"]
[null,{"$f":"Data_rozpoczęcia+2","v":"2017-05-07"},"07:00:00","Kawa",1,0,0,0,"Poranna kawa"]
[null,{"$f":"Data_rozpoczęcia+2","v":"2017-05-07"},"08:00:00","Drożdżówka",245,48,10,{"v":1.5,"d":"2"},"Lekkie śniadanie"]
[null,{"$f":"Data_rozpoczęcia+2","v":"2017-05-07"},"12:00:00","Obiad",247,11,43,5,"Sałatka"]
[null,{"$f":"Data_rozpoczęcia+2","v":"2017-05-07"},"19:00:00","Kolacja",456,64,32,22,"Kolacja"]
[null,{"$f":"Data_rozpoczęcia+3","v":"2017-05-08"},"07:00:00","Grzanka",10,10,2,10,"Lekkie śniadanie"]
[null,{"$f":"Data_rozpoczęcia+3","v":"2017-05-08"},"10:00:00","Kawa",135,{"v":12.36,"d":"12"},{"v":8.81,"d":"9"},{"v":5.51,"d":"6"},"Kawa latte"]
[null,{"$f":"Data_rozpoczęcia+3","v":"2017-05-08"},"12:15:00","Obiad",184,7,{"v":5.43,"d":"5"},15,"Sałatka"]
[null,{"$f":"Data_rozpoczęcia+5","v":"2017-05-10"},"19:00:00","Kolacja",477,62,{"v":13.5,"d":"14"},21,"Kolacja"]

{"sheet":"ĆWICZENIA","index":2,"n_rows":20,"n_cols":7,"rows_kept":20}
[null,"ĆWICZENIA",{"$nulls":3},"Dieta","Cele"]
[null,{"$f":"Podtytuł","v":"DZIENNIK DIETY I ĆWICZEŃ"}]
[null,"DATA","CZAS TRWANIA (W MINUTACH)","SPALONE KALORIE","NOTATKI"]
[null,{"$f":"Data_rozpoczęcia+4","v":"2017-05-09"},30,120,"Bieżnia"]
[null,{"$f":"B4+1","v":"2017-05-10"},60,180,"Lekki aerobik"]
[null,{"$f":"B5+1","v":"2017-05-11"},60,350,"Trening ekstremalny"]
[null,"2017-05-12",30,150,"Bieżnia"]
[null,"2017-05-13",25,125,"Bieg"]
[null,"2017-05-14",20,285,"Bieżnia"]
[null,"2017-05-15",40,205,"Bieg"]
[null,"2017-05-16",30,335,"Bieg"]
[null,"2017-05-17",40,175,"Bieg"]
[null,"2017-05-18",45,325,"Bieżnia"]
[null,"2017-05-19",40,270,"Bieg"]
[null,"2017-05-20",20,295,"Bieżnia"]
[null,"2017-05-21",45,350,"Bieg"]
[null,"2017-05-22",35,320,"Bieg"]
[null,"2017-05-23",40,290,"Bieg"]
[null,{"$f":"B18+1","v":"2017-05-24"},25,265,"Bieżnia"]
[null,"2017-05-25",20,195,"Bieg"]

{"sheet":"Obliczenia wykresu","index":3,"n_rows":36,"n_cols":10,"rows_kept":36,"hidden":true,"merged":[[1,1,1,9],[19,1,19,9]]}
[]
[null,"DANE WYKRESU ANALIZY DIETY"]
[]
[null,"Wiersz początkowy",{"$f":"ROW(Dieta[[#Headers],[DATA]])+1","v":4},"DATA","DZIEŃ","TŁUSZCZ","BIAŁKO","WĘGLOWODANY","KALORIE","Liczba"]
[null,"Ostatni wpis diety",{"$f":"MATCH(9.99E+307,Dieta[DATA])+Dieta_wiersz_początkowy-1","v":19},{"$f":"IFERROR(IF(INDEX(Dieta[],Dieta_ostatni_koniec-Dieta_wiersz_początkowy-J5,1)<>\"\",INDEX(Dieta[],Dieta_ostatni_koniec-Dieta_wiersz_początkowy-J5,1),\"\"),\"\")","v":"2017-05-05"},{"$f":"UPPER(TEXT(D5,\"AAA\"))","v":"PT"},{"$f":"IFERROR((IF(INDEX(Dieta[],Dieta_ostatni_koniec-Dieta_wiersz_początkowy-J5,1)<>\"\",INDEX(Dieta[],Dieta_ostatni_koniec-Dieta_wiersz_początkowy-J5,7),NA())),NA())","v":3.5},{"$f":"IFERROR((IF(INDEX(Dieta[],Dieta_ostatni_koniec-Dieta_wiersz_początkowy-J5,1)<>\"\",INDEX(Dieta[],Dieta_ostatni_koniec-Dieta_wiersz_początkowy-J5,6),NA())),NA())","v":18},{"$f":"IFERROR((IF(INDEX(Dieta[],Dieta_ostatni_koniec-Dieta_wiersz_początkowy-J5,1)<>\"\",INDEX(Dieta[],Dieta_ostatni_koniec-Dieta_wiersz_początkowy-J5,5),NA())),NA())","v":46},{"$f":"IFERROR((IF(INDEX(Dieta[],Dieta_ostatni_koniec-Dieta_wiersz_początkowy-J5,1)<>\"\",INDEX(Dieta[],Dieta_ostatni_koniec-Dieta_wiersz_początkowy-J5,4),NA())),NA())","v":283},12]
[{"$nulls":3},{"$f":"IFERROR(IF(INDEX(Dieta[],Dieta_ostatni_koniec-Dieta_wiersz_początkowy-J6,1)<>\"\",INDEX(Dieta[],Dieta_ostatni_koniec-Dieta_wiersz_początkowy-J6,1),\"\"),\"\")","v":"2017-05-05"},"PT",{"$f":"IFERROR((IF(INDEX(Dieta[],Dieta_ostatni_koniec-Dieta_wiersz_początkowy-J6,1)<>\"\",INDEX(Dieta[],Dieta_ostatni_koniec-Dieta_wiersz_początkowy-J6,7),NA())),NA())","v":25},{"$f":"IFERROR((IF(INDEX(Dieta[],Dieta_ostatni_koniec-Dieta_wiersz_początkowy-J6,1)<>\"\",INDEX(Dieta[],Dieta_ostatni_koniec-Dieta_wiersz_początkowy-J6,6),NA())),NA())","v":35},{"$f":"IFERROR((IF(INDEX(Dieta[],Dieta_ostatni_koniec-Dieta_wiersz_początkowy-J6,1)<>\"\",INDEX(Dieta[],Dieta_ostatni_koniec-Dieta_wiersz_początkowy-J6,5),NA())),NA())","v":42},{"$f":"IFERROR((IF(INDEX(Dieta[],Dieta_ostatni_koniec-Dieta_wiersz_początkowy-J6,1)<>\"\",INDEX(Dieta[],Dieta_ostatni_koniec-Dieta_wiersz_początkowy-J6,4),NA())),NA())","v":500},11]
[{"$nulls":3},{"$f":"IFERROR(IF(INDEX(Dieta[],Dieta_ostatni_koniec-Dieta_wiersz_początkowy-J7,1)<>\"\",INDEX(Dieta[],Dieta_ostatni_koniec-Dieta_wiersz_początkowy-J7,1),\"\"),\"\")","v":"2017-05-06"},"SOB",{"$f":"IFERROR((IF(INDEX(Dieta[],Dieta_ostatni_koniec-Dieta_wiersz_początkowy-J7,1)<>\"\",INDEX(Dieta[],Dieta_ostatni_koniec-Dieta_wiersz_początkowy-J7,7),NA())),NA())","v":0},{"$f":"IFERROR((IF(INDEX(Dieta[],Dieta_ostatni_koniec-Dieta_wiersz_początkowy-J7,1)<>\"\",INDEX(Dieta[],Dieta_ostatni_koniec-Dieta_wiersz_początkowy-J7,6),NA())),NA())","v":0},{"$f":"IFERROR((IF(INDEX(Dieta[],Dieta_ostatni_koniec-Dieta_wiersz_początkowy-J7,1)<>\"\",INDEX(Dieta[],Dieta_ostatni_koniec-Dieta_wiersz_początkowy-J7,5),NA())),NA())","v":0},{"$f":"IFERROR((IF(INDEX(Dieta[],Dieta_ostatni_koniec-Dieta_wiersz_początkowy-J7,1)<>\"\",INDEX(Dieta[],Dieta_ostatni_koniec-Dieta_wiersz_początkowy-J7,4),NA())),NA())","v":1},10]
[{"$nulls":3},{"$f":"IFERROR(IF(INDEX(Dieta[],Dieta_ostatni_koniec-Dieta_wiersz_początkowy-J8,1)<>\"\",INDEX(Dieta[],Dieta_ostatni_koniec-Dieta_wiersz_początkowy-J8,1),\"\"),\"\")","v":"2017-05-06"},"SOB",{"$f":"IFERROR((IF(INDEX(Dieta[],Dieta_ostatni_koniec-Dieta_wiersz_początkowy-J8,1)<>\"\",INDEX(Dieta[],Dieta_ostatni_koniec-Dieta_wiersz_początkowy-J8,7),NA())),NA())","v":10},{"$f":"IFERROR((IF(INDEX(Dieta[],Dieta_ostatni_koniec-Dieta_wiersz_początkowy-J8,1)<>\"\",INDEX(Dieta[],Dieta_ostatni_koniec-Dieta_wiersz_początkowy-J8,6),NA())),NA())","v":2},{"$f":"IFERROR((IF(INDEX(Dieta[],Dieta_ostatni_koniec-Dieta_wiersz_początkowy-J8,1)<>\"\",INDEX(Dieta[],Dieta_ostatni_koniec-Dieta_wiersz_początkowy-J8,5),NA())),NA())","v":10},{"$f":"IFERROR((IF(INDEX(Dieta[],Dieta_ostatni_koniec-Dieta_wiersz_początkowy-J8,1)<>\"\",INDEX(Dieta[],Dieta_ostatni_koniec-Dieta_wiersz_początkowy-J8,4),NA())),NA())","v":10},9]
[{"$nulls":3},{"$f":"IFERROR(IF(INDEX(Dieta[],Dieta_ostatni_koniec-Dieta_wiersz_początkowy-J9,1)<>\"\",INDEX(Dieta[],Dieta_ostatni_koniec-Dieta_wiersz_początkowy-J9,1),\"\"),\"\")","v":"2017-05-06"},"SOB",{"$f":"IFERROR((IF(INDEX(Dieta[],Dieta_ostatni_koniec-Dieta_wiersz_początkowy-J9,1)<>\"\",INDEX(Dieta[],Dieta_ostatni_koniec-Dieta_wiersz_początkowy-J9,7),NA())),NA())","v":8},{"$f":"IFERROR((IF(INDEX(Dieta[],Dieta_ostatni_koniec-Dieta_wiersz_początkowy-J9,1)<>\"\",INDEX(Dieta[],Dieta_ostatni_koniec-Dieta_wiersz_początkowy-J9,6),NA())),NA())","v":3},{"$f":"IFERROR((IF(INDEX(Dieta[],Dieta_ostatni_koniec-Dieta_wiersz_początkowy-J9,1)<>\"\",INDEX(Dieta[],Dieta_ostatni_koniec-Dieta_wiersz_początkowy-J9,5),NA())),NA())","v":26},{"$f":"IFERROR((IF(INDEX(Dieta[],Dieta_ostatni_koniec-Dieta_wiersz_początkowy-J9,1)<>\"\",INDEX(Dieta[],Dieta_ostatni_koniec-Dieta_wiersz_początkowy-J9,4),NA())),NA())","v":189},8]
[{"$nulls":3},{"$f":"IFERROR(IF(INDEX(Dieta[],Dieta_ostatni_koniec-Dieta_wiersz_początkowy-J10,1)<>\"\",INDEX(Dieta[],Dieta_ostatni_koniec-Dieta_wiersz_początkowy-J10,1),\"\"),\"\")","v":"2017-05-06"},"SOB",{"$f":"IFERROR((IF(INDEX(Dieta[],Dieta_ostatni_koniec-Dieta_wiersz_początkowy-J10,1)<>\"\",INDEX(Dieta[],Dieta_ostatni_koniec-Dieta_wiersz_początkowy-J10,7),NA())),NA())","v":21},{"$f":"IFERROR((IF(INDEX(Dieta[],Dieta_ostatni_koniec-Dieta_wiersz_początkowy-J10,1)<>\"\",INDEX(Dieta[],Dieta_ostatni_koniec-Dieta_wiersz_początkowy-J10,6),NA())),NA())","v":13.5},{"$f":"IFERROR((IF(INDEX(Dieta[],Dieta_ostatni_koniec-Dieta_wiersz_początkowy-J10,1)<>\"\",INDEX(Dieta[],Dieta_ostatni_koniec-Dieta_wiersz_początkowy-J10,5),NA())),NA())","v":62},{"$f":"IFERROR((IF(INDEX(Dieta[],Dieta_ostatni_koniec-Dieta_wiersz_początkowy-J10,1)<>\"\",INDEX(Dieta[],Dieta_ostatni_koniec-Dieta_wiersz_początkowy-J10,4),NA())),NA())","v":477},7]
[{"$nulls":3},{"$f":"IFERROR(IF(INDEX(Dieta[],Dieta_ostatni_koniec-Dieta_wiersz_początkowy-J11,1)<>\"\",INDEX(Dieta[],Dieta_ostatni_koniec-Dieta_wiersz_początkowy-J11,1),\"\"),\"\")","v":"2017-05-07"},"NIEDZ",{"$f":"IFERROR((IF(INDEX(Dieta[],Dieta_ostatni_koniec-Dieta_wiersz_początkowy-J11,1)<>\"\",INDEX(Dieta[],Dieta_ostatni_koniec-Dieta_wiersz_początkowy-J11,7),NA())),NA())","v":0},{"$f":"IFERROR((IF(INDEX(Dieta[],Dieta_ostatni_koniec-Dieta_wiersz_początkowy-J11,1)<>\"\",INDEX(Dieta[],Dieta_ostatni_koniec-Dieta_wiersz_początkowy-J11,6),NA())),NA())","v":0},{"$f":"IFERROR((IF(INDEX(Dieta[],Dieta_ostatni_koniec-Dieta_wiersz_początkowy-J11,1)<>\"\",INDEX(Dieta[],Dieta_ostatni_koniec-Dieta_wiersz_początkowy-J11,5),NA())),NA())","v":0},{"$f":"IFERROR((IF(INDEX(Dieta[],Dieta_ostatni_koniec-Dieta_wiersz_początkowy-J11,1)<>\"\",INDEX(Dieta[],Dieta_ostatni_koniec-Dieta_wiersz_początkowy-J11,4),NA())),NA())","v":1},6]
[{"$nulls":3},{"$f":"IFERROR(IF(INDEX(Dieta[],Dieta_ostatni_koniec-Dieta_wiersz_początkowy-J12,1)<>\"\",INDEX(Dieta[],Dieta_ostatni_koniec-Dieta_wiersz_początkowy-J12,1),\"\"),\"\")","v":"2017-05-07"},"NIEDZ",{"$f":"IFERROR((IF(INDEX(Dieta[],Dieta_ostatni_koniec-Dieta_wiersz_początkowy-J12,1)<>\"\",INDEX(Dieta[],Dieta_ostatni_koniec-Dieta_wiersz_początkowy-J12,7),NA())),NA())","v":1.5},{"$f":"IFERROR((IF(INDEX(Dieta[],Dieta_ostatni_koniec-Dieta_wiersz_początkowy-J12,1)<>\"\",INDEX(Dieta[],Dieta_ostatni_koniec-Dieta_wiersz_początkowy-J12,6),NA())),NA())","v":10},{"$f":"IFERROR((IF(INDEX(Dieta[],Dieta_ostatni_koniec-Dieta_wiersz_początkowy-J12,1)<>\"\",INDEX(Dieta[],Dieta_ostatni_koniec-Dieta_wiersz_początkowy-J12,5),NA())),NA())","v":48},{"$f":"IFERROR((IF(INDEX(Dieta[],Dieta_ostatni_koniec-Dieta_wiersz_początkowy-J12,1)<>\"\",INDEX(Dieta[],Dieta_ostatni_koniec-Dieta_wiersz_początkowy-J12,4),NA())),NA())","v":245},5]
[{"$nulls":3},{"$f":"IFERROR(IF(INDEX(Dieta[],Dieta_ostatni_koniec-Dieta_wiersz_początkowy-J13,1)<>\"\",INDEX(Dieta[],Dieta_ostatni_koniec-Dieta_wiersz_początkowy-J13,1),\"\"),\"\")","v":"2017-05-07"},"NIEDZ",{"$f":"IFERROR((IF(INDEX(Dieta[],Dieta_ostatni_koniec-Dieta_wiersz_początkowy-J13,1)<>\"\",INDEX(Dieta[],Dieta_ostatni_koniec-Dieta_wiersz_początkowy-J13,7),NA())),NA())","v":5},{"$f":"IFERROR((IF(INDEX(Dieta[],Dieta_ostatni_koniec-Dieta_wiersz_początkowy-J13,1)<>\"\",INDEX(Dieta[],Dieta_ostatni_koniec-Dieta_wiersz_początkowy-J13,6),NA())),NA())","v":43},{"$f":"IFERROR((IF(INDEX(Dieta[],Dieta_ostatni_koniec-Dieta_wiersz_początkowy-J13,1)<>\"\",INDEX(Dieta[],Dieta_ostatni_koniec-Dieta_wiersz_początkowy-J13,5),NA())),NA())","v":11},{"$f":"IFERROR((IF(INDEX(Dieta[],Dieta_ostatni_koniec-Dieta_wiersz_początkowy-J13,1)<>\"\",INDEX(Dieta[],Dieta_ostatni_koniec-Dieta_wiersz_początkowy-J13,4),NA())),NA())","v":247},4]
[{"$nulls":3},{"$f":"IFERROR(IF(INDEX(Dieta[],Dieta_ostatni_koniec-Dieta_wiersz_początkowy-J14,1)<>\"\",INDEX(Dieta[],Dieta_ostatni_koniec-Dieta_wiersz_początkowy-J14,1),\"\"),\"\")","v":"2017-05-07"},"NIEDZ",{"$f":"IFERROR((IF(INDEX(Dieta[],Dieta_ostatni_koniec-Dieta_wiersz_początkowy-J14,1)<>\"\",INDEX(Dieta[],Dieta_ostatni_koniec-Dieta_wiersz_początkowy-J14,7),NA())),NA())","v":22},{"$f":"IFERROR((IF(INDEX(Dieta[],Dieta_ostatni_koniec-Dieta_wiersz_początkowy-J14,1)<>\"\",INDEX(Dieta[],Dieta_ostatni_koniec-Dieta_wiersz_początkowy-J14,6),NA())),NA())","v":32},{"$f":"IFERROR((IF(INDEX(Dieta[],Dieta_ostatni_koniec-Dieta_wiersz_początkowy-J14,1)<>\"\",INDEX(Dieta[],Dieta_ostatni_koniec-Dieta_wiersz_początkowy-J14,5),NA())),NA())","v":64},{"$f":"IFERROR((IF(INDEX(Dieta[],Dieta_ostatni_koniec-Dieta_wiersz_początkowy-J14,1)<>\"\",INDEX(Dieta[],Dieta_ostatni_koniec-Dieta_wiersz_początkowy-J14,4),NA())),NA())","v":456},3]
[{"$nulls":3},{"$f":"IFERROR(IF(INDEX(Dieta[],Dieta_ostatni_koniec-Dieta_wiersz_początkowy-J15,1)<>\"\",INDEX(Dieta[],Dieta_ostatni_koniec-Dieta_wiersz_początkowy-J15,1),\"\"),\"\")","v":"2017-05-08"},"PON",{"$f":"IFERROR((IF(INDEX(Dieta[],Dieta_ostatni_koniec-Dieta_wiersz_początkowy-J15,1)<>\"\",INDEX(Dieta[],Dieta_ostatni_koniec-Dieta_wiersz_początkowy-J15,7),NA())),NA())","v":10},{"$f":"IFERROR((IF(INDEX(Dieta[],Dieta_ostatni_koniec-Dieta_wiersz_początkowy-J15,1)<>\"\",INDEX(Dieta[],Dieta_ostatni_koniec-Dieta_wiersz_początkowy-J15,6),NA())),NA())","v":2},{"$f":"IFERROR((IF(INDEX(Dieta[],Dieta_ostatni_koniec-Dieta_wiersz_początkowy-J15,1)<>\"\",INDEX(Dieta[],Dieta_ostatni_koniec-Dieta_wiersz_początkowy-J15,5),NA())),NA())","v":10},{"$f":"IFERROR((IF(INDEX(Dieta[],Dieta_ostatni_koniec-Dieta_wiersz_początkowy-J15,1)<>\"\",INDEX(Dieta[],Dieta_ostatni_koniec-Dieta_wiersz_początkowy-J15,4),NA())),NA())","v":10},2]
[{"$nulls":3},{"$f":"IFERROR(IF(INDEX(Dieta[],Dieta_ostatni_koniec-Dieta_wiersz_początkowy-J16,1)<>\"\",INDEX(Dieta[],Dieta_ostatni_koniec-Dieta_wiersz_początkowy-J16,1),\"\"),\"\")","v":"2017-05-08"},"PON",{"$f":"IFERROR((IF(INDEX(Dieta[],Dieta_ostatni_koniec-Dieta_wiersz_początkowy-J16,1)<>\"\",INDEX(Dieta[],Dieta_ostatni_koniec-Dieta_wiersz_początkowy-J16,7),NA())),NA())","v":5.51},{"$f":"IFERROR((IF(INDEX(Dieta[],Dieta_ostatni_koniec-Dieta_wiersz_początkowy-J16,1)<>\"\",INDEX(Dieta[],Dieta_ostatni_koniec-Dieta_wiersz_początkowy-J16,6),NA())),NA())","v":8.81},{"$f":"IFERROR((IF(INDEX(Dieta[],Dieta_ostatni_koniec-Dieta_wiersz_początkowy-J16,1)<>\"\",INDEX(Dieta[],Dieta_ostatni_koniec-Dieta_wiersz_początkowy-J16,5),NA())),NA())","v":12.36},{"$f":"IFERROR((IF(INDEX(Dieta[],Dieta_ostatni_koniec-Dieta_wiersz_początkowy-J16,1)<>\"\",INDEX(Dieta[],Dieta_ostatni_koniec-Dieta_wiersz_początkowy-J16,4),NA())),NA())","v":135},1]
[{"$nulls":3},{"$f":"IFERROR(IF(INDEX(Dieta[],Dieta_ostatni_koniec-Dieta_wiersz_początkowy-J17,1)<>\"\",INDEX(Dieta[],Dieta_ostatni_koniec-Dieta_wiersz_początkowy-J17,1),\"\"),\"\")","v":"2017-05-08"},"PON",{"$f":"IFERROR((IF(INDEX(Dieta[],Dieta_ostatni_koniec-Dieta_wiersz_początkowy-J17,1)<>\"\",INDEX(Dieta[],Dieta_ostatni_koniec-Dieta_wiersz_początkowy-J17,7),NA())),NA())","v":15},{"$f":"IFERROR((IF(INDEX(Dieta[],Dieta_ostatni_koniec-Dieta_wiersz_początkowy-J17,1)<>\"\",INDEX(Dieta[],Dieta_ostatni_koniec-Dieta_wiersz_początkowy-J17,6),NA())),NA())","v":5.43},{"$f":"IFERROR((IF(INDEX(Dieta[],Dieta_ostatni_koniec-Dieta_wiersz_początkowy-J17,1)<>\"\",INDEX(Dieta[],Dieta_ostatni_koniec-Dieta_wiersz_początkowy-J17,5),NA())),NA())","v":7},{"$f":"IFERROR((IF(INDEX(Dieta[],Dieta_ostatni_koniec-Dieta_wiersz_początkowy-J17,1)<>\"\",INDEX(Dieta[],Dieta_ostatni_koniec-Dieta_wiersz_początkowy-J17,4),NA())),NA())","v":184},0]
[{"$nulls":3},{"$f":"IFERROR(IF(INDEX(Dieta[],Dieta_ostatni_koniec-Dieta_wiersz_początkowy-J18,1)<>\"\",INDEX(Dieta[],Dieta_ostatni_koniec-Dieta_wiersz_początkowy-J18,1),\"\"),\"\")","v":"2017-05-10"},"ŚR",{"$f":"IFERROR((IF(INDEX(Dieta[],Dieta_ostatni_koniec-Dieta_wiersz_początkowy-J18,1)<>\"\",INDEX(Dieta[],Dieta_ostatni_koniec-Dieta_wiersz_początkowy-J18,7),NA())),NA())","v":21},{"$f":"IFERROR((IF(INDEX(Dieta[],Dieta_ostatni_koniec-Dieta_wiersz_początkowy-J18,1)<>\"\",INDEX(Dieta[],Dieta_ostatni_koniec-Dieta_wiersz_początkowy-J18,6),NA())),NA())","v":13.5},{"$f":"IFERROR((IF(INDEX(Dieta[],Dieta_ostatni_koniec-Dieta_wiersz_początkowy-J18,1)<>\"\",INDEX(Dieta[],Dieta_ostatni_koniec-Dieta_wiersz_początkowy-J18,5),NA())),NA())","v":62},{"$f":"IFERROR((IF(INDEX(Dieta[],Dieta_ostatni_koniec-Dieta_wiersz_początkowy-J18,1)<>\"\",INDEX(Dieta[],Dieta_ostatni_koniec-Dieta_wiersz_początkowy-J18,4),NA())),NA())","v":477},-1]
[]
[null,"DANE WYKRESU ANALIZY ĆWICZEŃ"]
[]
[null,"Wiersz początkowy",{"$f":"ROW(Ćwiczenia[[#Headers],[DATA]])+1","v":4},"DATA","DZIEŃ","CZAS TRWANIA (W MINUTACH)","SPALONE KALORIE","Liczba"]
[null,"Ostatni wpis ćwiczeń",{"$f":"MATCH(9.99E+307,Ćwiczenia[DATA])+Ćwiczenia_wiersz_początkowy-1","v":20},{"$f":"IFERROR(IF(INDEX(Ćwiczenia[],Ćwiczenia_ostatni_koniec-Ćwiczenia_wiersz_początkowy-H23,1)<>\"\",INDEX(Ćwiczenia[],Ćwiczenia_ostatni_koniec-Ćwiczenia_wiersz_początkowy-H23,1)),\"\")","v":"2017-05-25"},{"$f":"UPPER(TEXT(D23,\"AAA\"))","v":"CZW"},{"$f":"IFERROR((IF(INDEX(Ćwiczenia[],Ćwiczenia_ostatni_koniec-Ćwiczenia_wiersz_początkowy-H23,1)<>\"\",INDEX(Ćwiczenia[],Ćwiczenia_ostatni_koniec-Ćwiczenia_wiersz_początkowy-H23,2),0)),0)","v":20},{"$f":"IFERROR((IF(INDEX(Ćwiczenia[],Ćwiczenia_ostatni_koniec-Ćwiczenia_wiersz_początkowy-H23,2)<>\"\",INDEX(Ćwiczenia[],Ćwiczenia_ostatni_koniec-Ćwiczenia_wiersz_początkowy-H23,3),0)),0)","v":195},-1]
[{"$nulls":3},{"$f":"IFERROR(IF(INDEX(Ćwiczenia[],Ćwiczenia_ostatni_koniec-Ćwiczenia_wiersz_początkowy-H24,1)<>\"\",INDEX(Ćwiczenia[],Ćwiczenia_ostatni_koniec-Ćwiczenia_wiersz_początkowy-H24,1)),\"\")","v":"2017-05-24"},"ŚR",{"$f":"IFERROR((IF(INDEX(Ćwiczenia[],Ćwiczenia_ostatni_koniec-Ćwiczenia_wiersz_początkowy-H24,1)<>\"\",INDEX(Ćwiczenia[],Ćwiczenia_ostatni_koniec-Ćwiczenia_wiersz_początkowy-H24,2),0)),0)","v":25},{"$f":"IFERROR((IF(INDEX(Ćwiczenia[],Ćwiczenia_ostatni_koniec-Ćwiczenia_wiersz_początkowy-H24,2)<>\"\",INDEX(Ćwiczenia[],Ćwiczenia_ostatni_koniec-Ćwiczenia_wiersz_początkowy-H24,3),0)),0)","v":265},0]
[{"$nulls":3},{"$f":"IFERROR(IF(INDEX(Ćwiczenia[],Ćwiczenia_ostatni_koniec-Ćwiczenia_wiersz_początkowy-H25,1)<>\"\",INDEX(Ćwiczenia[],Ćwiczenia_ostatni_koniec-Ćwiczenia_wiersz_początkowy-H25,1)),\"\")","v":"2017-05-23"},"WT",{"$f":"IFERROR((IF(INDEX(Ćwiczenia[],Ćwiczenia_ostatni_koniec-Ćwiczenia_wiersz_początkowy-H25,1)<>\"\",INDEX(Ćwiczenia[],Ćwiczenia_ostatni_koniec-Ćwiczenia_wiersz_początkowy-H25,2),0)),0)","v":40},{"$f":"IFERROR((IF(INDEX(Ćwiczenia[],Ćwiczenia_ostatni_koniec-Ćwiczenia_wiersz_początkowy-H25,2)<>\"\",INDEX(Ćwiczenia[],Ćwiczenia_ostatni_koniec-Ćwiczenia_wiersz_początkowy-H25,3),0)),0)","v":290},1]
[{"$nulls":3},{"$f":"IFERROR(IF(INDEX(Ćwiczenia[],Ćwiczenia_ostatni_koniec-Ćwiczenia_wiersz_początkowy-H26,1)<>\"\",INDEX(Ćwiczenia[],Ćwiczenia_ostatni_koniec-Ćwiczenia_wiersz_początkowy-H26,1)),\"\")","v":"2017-05-22"},"PON",{"$f":"IFERROR((IF(INDEX(Ćwiczenia[],Ćwiczenia_ostatni_koniec-Ćwiczenia_wiersz_początkowy-H26,1)<>\"\",INDEX(Ćwiczenia[],Ćwiczenia_ostatni_koniec-Ćwiczenia_wiersz_początkowy-H26,2),0)),0)","v":35},{"$f":"IFERROR((IF(INDEX(Ćwiczenia[],Ćwiczenia_ostatni_koniec-Ćwiczenia_wiersz_początkowy-H26,2)<>\"\",INDEX(Ćwiczenia[],Ćwiczenia_ostatni_koniec-Ćwiczenia_wiersz_początkowy-H26,3),0)),0)","v":320},2]
[{"$nulls":3},{"$f":"IFERROR(IF(INDEX(Ćwiczenia[],Ćwiczenia_ostatni_koniec-Ćwiczenia_wiersz_początkowy-H27,1)<>\"\",INDEX(Ćwiczenia[],Ćwiczenia_ostatni_koniec-Ćwiczenia_wiersz_początkowy-H27,1)),\"\")","v":"2017-05-21"},"NIEDZ",{"$f":"IFERROR((IF(INDEX(Ćwiczenia[],Ćwiczenia_ostatni_koniec-Ćwiczenia_wiersz_początkowy-H27,1)<>\"\",INDEX(Ćwiczenia[],Ćwiczenia_ostatni_koniec-Ćwiczenia_wiersz_początkowy-H27,2),0)),0)","v":45},{"$f":"IFERROR((IF(INDEX(Ćwiczenia[],Ćwiczenia_ostatni_koniec-Ćwiczenia_wiersz_początkowy-H27,2)<>\"\",INDEX(Ćwiczenia[],Ćwiczenia_ostatni_koniec-Ćwiczenia_wiersz_początkowy-H27,3),0)),0)","v":350},3]
[{"$nulls":3},{"$f":"IFERROR(IF(INDEX(Ćwiczenia[],Ćwiczenia_ostatni_koniec-Ćwiczenia_wiersz_początkowy-H28,1)<>\"\",INDEX(Ćwiczenia[],Ćwiczenia_ostatni_koniec-Ćwiczenia_wiersz_początkowy-H28,1)),\"\")","v":"2017-05-20"},"SOB",{"$f":"IFERROR((IF(INDEX(Ćwiczenia[],Ćwiczenia_ostatni_koniec-Ćwiczenia_wiersz_początkowy-H28,1)<>\"\",INDEX(Ćwiczenia[],Ćwiczenia_ostatni_koniec-Ćwiczenia_wiersz_początkowy-H28,2),0)),0)","v":20},{"$f":"IFERROR((IF(INDEX(Ćwiczenia[],Ćwiczenia_ostatni_koniec-Ćwiczenia_wiersz_początkowy-H28,2)<>\"\",INDEX(Ćwiczenia[],Ćwiczenia_ostatni_koniec-Ćwiczenia_wiersz_początkowy-H28,3),0)),0)","v":295},4]
[{"$nulls":3},{"$f":"IFERROR(IF(INDEX(Ćwiczenia[],Ćwiczenia_ostatni_koniec-Ćwiczenia_wiersz_początkowy-H29,1)<>\"\",INDEX(Ćwiczenia[],Ćwiczenia_ostatni_koniec-Ćwiczenia_wiersz_początkowy-H29,1)),\"\")","v":"2017-05-19"},"PT",{"$f":"IFERROR((IF(INDEX(Ćwiczenia[],Ćwiczenia_ostatni_koniec-Ćwiczenia_wiersz_początkowy-H29,1)<>\"\",INDEX(Ćwiczenia[],Ćwiczenia_ostatni_koniec-Ćwiczenia_wiersz_początkowy-H29,2),0)),0)","v":40},{"$f":"IFERROR((IF(INDEX(Ćwiczenia[],Ćwiczenia_ostatni_koniec-Ćwiczenia_wiersz_początkowy-H29,2)<>\"\",INDEX(Ćwiczenia[],Ćwiczenia_ostatni_koniec-Ćwiczenia_wiersz_początkowy-H29,3),0)),0)","v":270},5]
[{"$nulls":3},{"$f":"IFERROR(IF(INDEX(Ćwiczenia[],Ćwiczenia_ostatni_koniec-Ćwiczenia_wiersz_początkowy-H30,1)<>\"\",INDEX(Ćwiczenia[],Ćwiczenia_ostatni_koniec-Ćwiczenia_wiersz_początkowy-H30,1)),\"\")","v":"2017-05-18"},"CZW",{"$f":"IFERROR((IF(INDEX(Ćwiczenia[],Ćwiczenia_ostatni_koniec-Ćwiczenia_wiersz_początkowy-H30,1)<>\"\",INDEX(Ćwiczenia[],Ćwiczenia_ostatni_koniec-Ćwiczenia_wiersz_początkowy-H30,2),0)),0)","v":45},{"$f":"IFERROR((IF(INDEX(Ćwiczenia[],Ćwiczenia_ostatni_koniec-Ćwiczenia_wiersz_początkowy-H30,2)<>\"\",INDEX(Ćwiczenia[],Ćwiczenia_ostatni_koniec-Ćwiczenia_wiersz_początkowy-H30,3),0)),0)","v":325},6]
[{"$nulls":3},{"$f":"IFERROR(IF(INDEX(Ćwiczenia[],Ćwiczenia_ostatni_koniec-Ćwiczenia_wiersz_początkowy-H31,1)<>\"\",INDEX(Ćwiczenia[],Ćwiczenia_ostatni_koniec-Ćwiczenia_wiersz_początkowy-H31,1)),\"\")","v":"2017-05-17"},"ŚR",{"$f":"IFERROR((IF(INDEX(Ćwiczenia[],Ćwiczenia_ostatni_koniec-Ćwiczenia_wiersz_początkowy-H31,1)<>\"\",INDEX(Ćwiczenia[],Ćwiczenia_ostatni_koniec-Ćwiczenia_wiersz_początkowy-H31,2),0)),0)","v":40},{"$f":"IFERROR((IF(INDEX(Ćwiczenia[],Ćwiczenia_ostatni_koniec-Ćwiczenia_wiersz_początkowy-H31,2)<>\"\",INDEX(Ćwiczenia[],Ćwiczenia_ostatni_koniec-Ćwiczenia_wiersz_początkowy-H31,3),0)),0)","v":175},7]
[{"$nulls":3},{"$f":"IFERROR(IF(INDEX(Ćwiczenia[],Ćwiczenia_ostatni_koniec-Ćwiczenia_wiersz_początkowy-H32,1)<>\"\",INDEX(Ćwiczenia[],Ćwiczenia_ostatni_koniec-Ćwiczenia_wiersz_początkowy-H32,1)),\"\")","v":"2017-05-16"},"WT",{"$f":"IFERROR((IF(INDEX(Ćwiczenia[],Ćwiczenia_ostatni_koniec-Ćwiczenia_wiersz_początkowy-H32,1)<>\"\",INDEX(Ćwiczenia[],Ćwiczenia_ostatni_koniec-Ćwiczenia_wiersz_początkowy-H32,2),0)),0)","v":30},{"$f":"IFERROR((IF(INDEX(Ćwiczenia[],Ćwiczenia_ostatni_koniec-Ćwiczenia_wiersz_początkowy-H32,2)<>\"\",INDEX(Ćwiczenia[],Ćwiczenia_ostatni_koniec-Ćwiczenia_wiersz_początkowy-H32,3),0)),0)","v":335},8]
[{"$nulls":3},{"$f":"IFERROR(IF(INDEX(Ćwiczenia[],Ćwiczenia_ostatni_koniec-Ćwiczenia_wiersz_początkowy-H33,1)<>\"\",INDEX(Ćwiczenia[],Ćwiczenia_ostatni_koniec-Ćwiczenia_wiersz_początkowy-H33,1)),\"\")","v":"2017-05-15"},"PON",{"$f":"IFERROR((IF(INDEX(Ćwiczenia[],Ćwiczenia_ostatni_koniec-Ćwiczenia_wiersz_początkowy-H33,1)<>\"\",INDEX(Ćwiczenia[],Ćwiczenia_ostatni_koniec-Ćwiczenia_wiersz_początkowy-H33,2),0)),0)","v":40},{"$f":"IFERROR((IF(INDEX(Ćwiczenia[],Ćwiczenia_ostatni_koniec-Ćwiczenia_wiersz_początkowy-H33,2)<>\"\",INDEX(Ćwiczenia[],Ćwiczenia_ostatni_koniec-Ćwiczenia_wiersz_początkowy-H33,3),0)),0)","v":205},9]
[{"$nulls":3},{"$f":"IFERROR(IF(INDEX(Ćwiczenia[],Ćwiczenia_ostatni_koniec-Ćwiczenia_wiersz_początkowy-H34,1)<>\"\",INDEX(Ćwiczenia[],Ćwiczenia_ostatni_koniec-Ćwiczenia_wiersz_początkowy-H34,1)),\"\")","v":"2017-05-14"},"NIEDZ",{"$f":"IFERROR((IF(INDEX(Ćwiczenia[],Ćwiczenia_ostatni_koniec-Ćwiczenia_wiersz_początkowy-H34,1)<>\"\",INDEX(Ćwiczenia[],Ćwiczenia_ostatni_koniec-Ćwiczenia_wiersz_początkowy-H34,2),0)),0)","v":20},{"$f":"IFERROR((IF(INDEX(Ćwiczenia[],Ćwiczenia_ostatni_koniec-Ćwiczenia_wiersz_początkowy-H34,2)<>\"\",INDEX(Ćwiczenia[],Ćwiczenia_ostatni_koniec-Ćwiczenia_wiersz_początkowy-H34,3),0)),0)","v":285},10]
[{"$nulls":3},{"$f":"IFERROR(IF(INDEX(Ćwiczenia[],Ćwiczenia_ostatni_koniec-Ćwiczenia_wiersz_początkowy-H35,1)<>\"\",INDEX(Ćwiczenia[],Ćwiczenia_ostatni_koniec-Ćwiczenia_wiersz_początkowy-H35,1)),\"\")","v":"2017-05-13"},"SOB",{"$f":"IFERROR((IF(INDEX(Ćwiczenia[],Ćwiczenia_ostatni_koniec-Ćwiczenia_wiersz_początkowy-H35,1)<>\"\",INDEX(Ćwiczenia[],Ćwiczenia_ostatni_koniec-Ćwiczenia_wiersz_początkowy-H35,2),0)),0)","v":25},{"$f":"IFERROR((IF(INDEX(Ćwiczenia[],Ćwiczenia_ostatni_koniec-Ćwiczenia_wiersz_początkowy-H35,2)<>\"\",INDEX(Ćwiczenia[],Ćwiczenia_ostatni_koniec-Ćwiczenia_wiersz_początkowy-H35,3),0)),0)","v":125},11]
[{"$nulls":3},{"$f":"IFERROR(IF(INDEX(Ćwiczenia[],Ćwiczenia_ostatni_koniec-Ćwiczenia_wiersz_początkowy-H36,1)<>\"\",INDEX(Ćwiczenia[],Ćwiczenia_ostatni_koniec-Ćwiczenia_wiersz_początkowy-H36,1)),\"\")","v":"2017-05-12"},"PT",{"$f":"IFERROR((IF(INDEX(Ćwiczenia[],Ćwiczenia_ostatni_koniec-Ćwiczenia_wiersz_początkowy-H36,1)<>\"\",INDEX(Ćwiczenia[],Ćwiczenia_ostatni_koniec-Ćwiczenia_wiersz_początkowy-H36,2),0)),0)","v":30},{"$f":"IFERROR((IF(INDEX(Ćwiczenia[],Ćwiczenia_ostatni_koniec-Ćwiczenia_wiersz_początkowy-H36,2)<>\"\",INDEX(Ćwiczenia[],Ćwiczenia_ostatni_koniec-Ćwiczenia_wiersz_początkowy-H36,3),0)),0)","v":150},12]